bitfinex/quotes_SOLUSD_20251218
["timestamp","ask_amount","ask_price","bid_price","bid_amount"]
[1766067226411,0.7,125.97,125.9,7.94281143]
[1766067226615,0.7,125.97,125.91,7.94174193]
[1766067226823,10.43387938,125.99,125.91,8.64195886]
[1766067227018,0.7,125.99,125.92,7.94120337]
[1766067227219,0.7,125.99,125.92,7.94154708]
[1766067227420,0.7,125.99,125.96,9.73387938]
[1766067227631,9.93387938,126.01,125.96,9.73387938]
[1766067227803,0.2,126.01,125.99,9.73387938]
[1766067228020,0.7,126.05,125.97,0.7]
[1766067228021,0.7,126.05,126.0,9.73387938]
[1766067228336,0.7,126.05,126.01,9.73387938]
[1766067228566,10.43387938,126.07,126.01,9.73387938]
[1766067228824,0.7,126.06,126.01,9.73387938]
[1766067229006,10.43387938,126.06,126.01,9.73387938]
[1766067229205,10.43387938,126.06,125.99,8.63707998]
[1766067229421,9.73387938,126.06,126.0,9.73387938]
[1766067229626,9.73387938,126.07,126.01,9.73387938]
[1766067229829,9.73387938,126.07,126.02,9.73387938]
[1766067230028,0.7,126.07,125.98,8.63761503]
[1766067230342,0.7,126.07,126.02,9.73387938]
[1766067230526,10.43387938,126.05,125.99,9.73387938]
[1766067230726,10.43387938,126.03,125.96,11.13767296]
[1766067231060,0.7,126.01,125.93,0.7]
[1766067231205,0.7,126.01,125.85,9.73387938]
[1766067231206,0.7,125.99,125.94,9.73387938]
[1766067231533,0.7,125.99,125.91,0.7]
[1766067231743,0.7,125.98,125.93,9.72338211]
[1766067232048,0.7,125.97,125.93,9.72338211]
[1766067232233,0.7,125.97,125.89,0.7]
[1766067232458,0.7,125.97,125.89,8.64322312]
[1766067232950,8.63843352,125.97,125.89,8.64322312]
[1766067233458,0.7,125.96,125.91,9.72338211]
[1766067233762,0.7,125.96,125.86,28.54257797]
[1766067233763,0.7,125.95,125.9,9.72338211]
[1766067234140,0.7,125.95,125.91,9.72338211]
[1766067235137,0.7,125.96,125.91,9.72338211]
[1766067235547,0.7,125.96,125.88,8.64405466]
[1766067235747,0.7,125.96,125.91,9.72338211]
[1766067237162,8.63943989,125.96,125.91,9.72338211]
[1766067237372,0.7,125.96,125.91,9.72338211]
[1766067237545,0.7,125.96,125.93,9.72338211]
[1766067237869,10.42338211,125.99,125.93,9.72338211]
[1766067238032,10.42338211,125.99,125.94,9.72338211]
[1766067238231,16.61695351,126.0,125.86,0.7]
[1766067238232,9.72338211,125.97,125.86,0.7]
[1766067238539,0.7,125.96,125.91,9.72338211]
[1766067238955,0.7,125.99,125.94,9.72338211]
[1766067239349,0.7,125.99,125.95,9.72338211]
[1766067239549,0.7,125.99,125.94,9.72338211]
[1766067239749,0.7,125.99,125.95,9.72338211]
[1766067239955,0.7,125.99,125.96,9.72338211]
[1766067240153,0.7,125.99,125.92,0.7]
[1766067240468,8.68,126.0,125.96,9.72338211]
[1766067240761,8.68,126.0,125.84,39.73278624]
[1766067240762,9.72338211,125.97,125.84,39.73278624]
[1766067240965,0.68,125.95,125.86,0.68]
[1766067241144,0.68,125.94,125.89,9.72338211]
[1766067241343,0.68,125.94,125.86,8.62519294]
[1766067241563,0.68,125.94,125.89,9.72338211]
[1766067241984,0.68,125.94,125.86,8.62519294]
[1766067242155,9.72338211,125.92,125.83,7.94687545]
[1766067242467,9.72338211,125.92,125.83,9.72338211]
[1766067242468,0.68,125.88,125.83,9.72338211]
[1766067242650,0.68,125.94,125.87,9.72338211]
[1766067242845,0.68,125.94,125.91,9.72338211]
[1766067243052,0.68,125.97,125.93,9.72338211]
[1766067243249,30.28366803,125.97,125.84,0.68]
[1766067243449,0.68,125.92,125.87,9.72338211]
[1766067243838,0.68,125.92,125.89,9.72338211]
[1766067244040,0.68,125.96,125.91,9.72338211]
[1766067244236,9.48994492,125.96,125.89,0.68]
[1766067244463,0.68,125.94,125.9,9.72338211]
[1766067244648,7.93924276,125.96,125.91,9.72338211]
[1766067244837,0.68,125.97,125.89,8.62330317]
[1766067245037,0.68,125.97,125.89,0.68]
[1766067245267,0.68,125.96,125.91,9.72338211]
[1766067245569,0.68,125.96,125.93,9.72338211]
[1766067245758,0.68,125.98,125.94,9.72338211]
[1766067245964,0.68,125.97,125.92,9.72338211]
[1766067246149,0.68,125.95,125.9,9.72338211]
[1766067246544,0.68,125.95,125.86,9.36]
[1766067246745,0.68,125.94,125.86,27.74292299]
[1766067246953,0.68,125.94,125.9,9.72338211]
[1766067247664,9.36,125.97,125.92,9.72338211]
[1766067247866,0.68,125.95,125.86,27.74292299]
[1766067248171,8.80994492,125.94,125.87,9.72338211]
[1766067248372,0.68,125.89,125.84,9.72338211]
[1766067248596,0.68,125.86,125.77,8.05064124]
[1766067248748,9.72338211,125.82,125.77,0.1]
[1766067249080,0.68,125.82,125.71,0.68]
[1766067249240,0.68,125.78,125.73,9.72338211]
[1766067249553,10.40338211,125.78,125.72,9.72338211]
[1766067249748,0.68,125.78,125.73,9.72338211]
[1766067249943,0.68,125.77,125.69,7.95607834]
[1766067250143,0.68,125.77,125.72,9.72338211]
[1766067250437,0.68,125.77,125.73,9.72338211]
[1766067250644,0.68,125.77,125.72,9.72338211]
[1766067251260,9.72338211,125.75,125.68,0.68]
[1766067251447,0.68,125.75,125.71,9.72338211]
[1766067252266,17.3104896,125.78,125.73,9.72338211]
[1766067252441,0.71,125.81,125.76,9.72338211]
[1766067252648,8.68,125.82,125.78,9.72338211]
[1766067252972,7.94618315,125.85,125.78,0.67]
[1766067253153,7.94618315,125.85,125.79,9.72338211]
[1766067253154,26.95956526,125.85,125.79,9.72338211]
[1766067253353,8.68,125.85,125.78,0.67]
[1766067253556,8.55477837,125.87,125.83,9.72338211]
[1766067253749,18.27816048,125.87,125.81,9.72338211]
[1766067253954,9.72338211,125.88,125.8,0.67]
[1766067254162,9.72338211,125.88,125.82,9.72338211]
[1766067254369,26.95703659,125.89,125.83,9.72338211]
[1766067254668,7.94172616,125.92,125.87,9.72338211]
[1766067254881,37.51898374,125.92,125.86,9.72338211]
[1766067255079,17.66510827,125.92,125.84,0.67]
[1766067255287,17.66510827,125.92,125.86,9.72338211]
[1766067255473,8.68,125.93,125.88,9.72338211]
[1766067255679,8.68,125.93,125.86,0.67]
[1766067255680,18.40338211,125.93,125.87,9.72338211]
[1766067255871,16.62105428,125.93,125.87,9.72338211]
[1766067256071,9.72338211,125.93,125.86,0.67]
[1766067256273,9.72338211,125.93,125.87,9.72338211]
[1766067256682,7.94155019,125.92,125.87,9.72338211]
[1766067256995,7.94115152,125.93,125.88,9.72338211]
[1766067257283,37.51683252,125.93,125.87,9.72338211]
[1766067257485,17.66453363,125.93,125.87,9.72338211]
[1766067257678,16.62047561,125.94,125.89,9.72338211]
[1766067257869,18.53332703,125.93,125.83,18.38465968]
[1766067258068,19.14332703,125.91,125.81,0.67]
[1766067258282,9.72338211,125.9,125.84,9.72338211]
[1766067258487,10.33338211,125.88,125.81,0.67]
[1766067258681,27.92761788,125.9,125.77,8.68]
[1766067258682,18.27808696,125.87,125.78,0.67]
[1766067258884,18.27808696,125.87,125.81,9.72338211]
[1766067259089,9.72338211,125.86,125.79,0.67]
[1766067259394,19.01338211,125.85,125.76,0.67]
[1766067259592,19.01338211,125.85,125.79,9.72338211]
[1766067259776,19.01338211,125.85,125.76,0.67]
[1766067259963,19.01338211,125.85,125.79,9.72338211]
[1766067260280,8.68,125.85,125.81,9.72338211]
[1766067260482,9.72338211,125.86,125.8,0.67]
[1766067260689,9.72338211,125.84,125.77,0.67]
[1766067260867,8.55596742,125.85,125.77,0.67]
[1766067261067,0.61,125.87,125.81,9.72338211]
[1766067261268,0.61,125.87,125.83,9.72338211]
[1766067261269,8.55483026,125.87,125.83,9.72338211]
[1766067261472,8.55483026,125.87,125.79,0.67]
[1766067261473,9.72338211,125.86,125.81,9.72338211]
[1766067261890,37.22653731,125.87,125.79,0.67]
[1766067262091,9.72338211,125.85,125.8,9.72338211]
[1766067262588,46.94991942,125.87,125.79,0.67]
[1766067262772,37.22653731,125.87,125.8,9.72338211]
[1766067262973,9.72338211,125.84,125.76,0.67]
[1766067263187,9.29,125.84,125.78,9.72338211]
[1766067263488,19.01338211,125.84,125.79,9.72338211]
[1766067263864,28.41659239,125.87,125.8,9.72338211]
[1766067264064,8.68,125.86,125.81,9.72338211]
[1766067264268,20.16105507,125.83,125.74,0.67]
[1766067264465,10.33338211,125.79,125.74,9.72338211]
[1766067264686,16.63038956,125.78,125.73,9.72338211]
[1766067264869,16.63038956,125.78,125.73,10.39338211]
[1766067265070,26.35377167,125.78,125.73,10.39338211]
[1766067265373,9.72338211,125.77,125.72,9.72338211]
[1766067265584,9.72338211,125.77,125.72,10.39338211]
[1766067265785,16.63038956,125.78,125.74,9.72338211]
[1766067266791,7.95005277,125.79,125.75,9.72338211]
[1766067266967,26.37343488,125.79,125.74,9.72338211]
[1766067267166,16.65005277,125.79,125.71,7.95467239]
[1766067267381,16.65005277,125.79,125.75,9.72338211]
[1766067267580,16.65005277,125.79,125.7,10.43767296]
[1766067267581,16.65005277,125.79,125.74,0.67]
[1766067267891,8.7,125.79,125.75,10.39338211]
[1766067268095,8.7,125.79,125.77,9.72338211]
[1766067268391,8.80994492,125.81,125.7,10.43767296]
[1766067268709,0.71,125.75,125.69,9.72338211]
[1766067268868,9.72338211,125.73,125.68,9.72338211]
[1766067269200,16.65291872,125.74,125.65,15.77562769]
[1766067269497,9.72338211,125.73,125.66,9.72338211]
[1766067269804,9.72338211,125.72,125.66,9.72338211]
[1766067269968,36.53521552,125.74,125.66,9.72338211]
[1766067270170,9.72338211,125.72,125.66,9.72338211]
[1766067270471,9.72338211,125.72,125.67,0.67]
[1766067270675,36.53521552,125.74,125.67,0.67]
[1766067270870,16.65291872,125.74,125.67,0.67]
[1766067271174,17.67313964,125.79,125.73,0.67]
[1766067271401,6.77505433,125.75,125.7,10.43767296]
[1766067271572,6.77505433,125.72,125.68,0.67]
[1766067272197,17.50994492,125.78,125.68,0.67]
[1766067272198,6.77505433,125.71,125.68,0.67]
[1766067272490,6.77505433,125.72,125.68,0.67]
[1766067272893,14.72987097,125.71,125.68,0.67]
[1766067273402,19.88403588,125.73,125.68,0.67]
[1766067273403,7.95439261,125.72,125.68,0.67]
[1766067273573,6.77505433,125.71,125.68,0.67]
[1766067273768,6.77505433,125.7,125.68,0.67]
[1766067273973,6.77505433,125.7,125.65,0.67]
[1766067275189,7.95355126,125.73,125.66,0.67]
[1766067275190,27.83742941,125.73,125.66,0.67]
[1766067275393,6.77505433,125.7,125.66,0.67]
[1766067275585,6.77505433,125.68,125.62,6.77505433]
[1766067275790,6.77505433,125.7,125.64,0.67]
[1766067275977,27.83382388,125.75,125.68,0.67]
[1766067276289,6.77505433,125.71,125.68,0.67]
[1766067276894,14.72996855,125.71,125.68,0.67]
[1766067277098,14.72996855,125.71,125.66,0.67]
[1766067277393,6.77505433,125.7,125.66,0.67]
[1766067277610,14.72996855,125.71,125.66,0.67]
[1766067277772,6.77505433,125.7,125.66,0.67]
[1766067278495,14.72996855,125.71,125.66,0.67]
[1766067278886,14.73060386,125.7,125.66,0.67]
[1766067279299,14.73060386,125.7,125.64,6.77505433]
[1766067279300,6.77505433,125.68,125.64,0.67]
[1766067279495,11.02709943,125.68,125.64,0.67]
[1766067279699,11.02709943,125.67,125.64,0.67]
[1766067279903,0.71,125.75,125.67,0.67]
[1766067280072,11.02709943,125.72,125.67,0.67]
[1766067280277,11.02709943,125.71,125.67,0.67]
[1766067280794,11.02709943,125.71,125.65,21.46477239]
[1766067280983,11.02709943,125.72,125.66,0.67]
[1766067281179,11.02709943,125.7,125.66,0.67]
[1766067281398,11.02709943,125.71,125.66,0.67]
[1766067281591,11.02709943,125.71,125.66,11.69709943]
[1766067281786,28.547846,125.73,125.66,11.69709943]
[1766067282006,11.02709943,125.71,125.66,0.67]
[1766067282304,11.02709943,125.72,125.67,0.67]
[1766067282598,7.95396785,125.73,125.67,0.67]
[1766067283000,18.9813037,125.72,125.67,0.67]
[1766067283199,11.02709943,125.71,125.66,8.7]
[1766067283507,18.98089004,125.73,125.67,11.71709943]
[1766067283686,11.02709943,125.72,125.67,0.69]
[1766067283885,7.95379061,125.73,125.67,0.69]
[1766067284093,11.02709943,125.72,125.67,0.69]
[1766067284394,0.65,125.71,125.65,0.69]
[1766067284587,0.65,125.7,125.62,11.71709943]
[1766067284920,11.02709943,125.67,125.62,11.71709943]
[1766067285211,11.02709943,125.67,125.62,0.69]
[1766067285380,27.84850412,125.68,125.61,11.71709943]
[1766067285581,7.95671546,125.68,125.61,11.71709943]
[1766067285882,19.88930179,125.7,125.61,11.71709943]
[1766067285883,11.02709943,125.7,125.64,11.71709943]
[1766067286509,28.49185824,125.71,125.64,11.71709943]
[1766067286710,0.65,125.71,125.65,0.69]
[1766067286884,18.98159087,125.72,125.66,11.71709943]
[1766067287208,19.63159087,125.72,125.66,0.69]
[1766067287409,11.02709943,125.71,125.64,11.12767296]
[1766067287597,11.02709943,125.69,125.64,0.69]
[1766067287804,27.83995119,125.72,125.63,19.72709943]
[1766067287805,11.02709943,125.68,125.63,19.72709943]
[1766067287990,0.65,125.68,125.62,30.85477239]
[1766067288195,11.67709943,125.68,125.62,19.82767296]
[1766067288392,0.65,125.68,125.62,19.82767296]
[1766067288599,0.65,125.68,125.6,0.69]
[1766067288801,11.02709943,125.67,125.59,0.69]
[1766067288985,11.02709943,125.66,125.61,0.69]
[1766067289406,11.02709943,125.65,125.61,0.69]
[1766067289611,28.50131878,125.67,125.61,0.69]
[1766067289914,11.02709943,125.66,125.61,0.69]
[1766067290491,11.02709943,125.63,125.5,39.83877008]
[1766067290714,11.02709943,125.62,125.56,11.71709943]
[1766067290917,0.65,125.61,125.52,0.69]
[1766067291220,11.02709943,125.59,125.54,0.69]
[1766067291796,28.51430292,125.61,125.54,0.69]
[1766067291997,0.65,125.61,125.54,11.71709943]
[1766067292312,0.65,125.61,125.51,0.69]
[1766067292313,11.02709943,125.57,125.51,0.69]
[1766067292617,8.7,125.59,125.48,0.69]
[1766067292818,0.65,125.58,125.49,11.81709943]
[1766067293001,18.9914327,125.56,125.5,0.69]
[1766067293207,8.7,125.59,125.5,0.69]
[1766067293520,11.02709943,125.61,125.55,11.02709943]
[1766067293690,11.02709943,125.59,125.53,19.13767296]
[1766067294108,0.65,125.58,125.5,0.69]
[1766067294303,11.02709943,125.56,125.5,11.12767296]
[1766067294509,0.65,125.57,125.5,0.69]
[1766067294908,8.80994492,125.6,125.52,11.71709943]
[1766067295221,27.86035578,125.63,125.52,11.71709943]
[1766067295222,11.02709943,125.58,125.52,11.71709943]
[1766067295419,19.90043229,125.63,125.54,11.02709943]
[1766067295613,0.65,125.61,125.53,11.12767296]
[1766067295921,11.67709943,125.6,125.53,11.12767296]
[1766067296140,11.67709943,125.6,125.54,11.02709943]
[1766067296317,11.02709943,125.58,125.53,0.69]
[1766067296502,11.67709943,125.57,125.51,20.41709943]
[1766067296694,11.67709943,125.56,125.49,9.49]
[1766067296889,11.67709943,125.56,125.49,0.79]
[1766067296890,11.02709943,125.55,125.49,0.79]
[1766067297091,11.02709943,125.55,125.49,20.51709943]
[1766067297295,8.61455068,125.56,125.49,0.79]
[1766067297296,11.02709943,125.54,125.49,0.79]
[1766067297518,0.65,125.55,125.49,0.1]
[1766067297693,0.65,125.53,125.49,0.1]
[1766067297903,0.65,125.55,125.49,0.1]
[1766067298113,11.02709943,125.53,125.49,0.1]
[1766067298313,0.65,125.54,125.49,0.1]
[1766067298497,0.65,125.54,125.49,11.12709943]
[1766067298697,11.67709943,125.58,125.51,0.69]
[1766067298923,0.65,125.57,125.51,0.69]
[1766067299423,0.65,125.59,125.54,11.04204681]
[1766067299616,11.04204681,125.6,125.54,11.04204681]
[1766067299816,0.65,125.6,125.53,0.69]
[1766067300334,0.65,125.6,125.52,0.69]
[1766067300505,17.50994492,125.63,125.56,11.04204681]
[1766067300506,9.41,125.63,125.56,11.04204681]
[1766067300700,11.04204681,125.59,125.52,0.72]
[1766067300901,0.71,125.62,125.55,11.76204681]
[1766067301129,8.66993856,125.63,125.54,10.43767296]
[1766067301425,0.71,125.65,125.57,11.76204681]
[1766067301630,11.04204681,125.66,125.59,0.72]
[1766067301827,11.75204681,125.64,125.58,11.04204681]
[1766067302003,11.04204681,125.65,125.58,0.72]
[1766067302204,11.04204681,125.61,125.55,11.04204681]
[1766067302403,0.71,125.6,125.5,11.04204681]
[1766067302609,0.71,125.58,125.5,0.72]
[1766067302843,11.04204681,125.55,125.49,11.14204681]
[1766067303138,11.04204681,125.58,125.52,11.04204681]
[1766067303438,0.71,125.6,125.52,11.04204681]
[1766067303656,0.71,125.6,125.53,11.76204681]
[1766067303657,11.04204681,125.59,125.53,11.76204681]
[1766067303838,11.75204681,125.6,125.54,11.04204681]
[1766067304004,0.71,125.6,125.54,0.72]
[1766067304329,0.71,125.59,125.54,11.04204681]
[1766067304531,0.71,125.59,125.53,0.72]
[1766067304730,28.41366776,125.61,125.55,11.04204681]
[1766067304921,11.04204681,125.65,125.56,0.72]
[1766067305139,27.83964365,125.72,125.59,7.96241738]
[1766067305327,8.66360847,125.73,125.66,11.04204681]
[1766067305636,0.71,125.73,125.66,0.72]
[1766067305810,8.66318361,125.74,125.69,11.04204681]
[1766067306018,19.70518824,125.74,125.69,11.04204681]
[1766067306316,0.71,125.73,125.68,11.04204681]
[1766067306831,7.95247018,125.75,125.68,0.72]
[1766067307132,0.71,125.78,125.7,0.72]
[1766067307535,0.71,125.78,125.74,11.04204681]
[1766067307834,0.2,125.83,125.77,11.04204681]
[1766067308035,0.2,125.83,125.8,11.04204681]
[1766067308220,8.7,125.87,125.82,11.04204681]
[1766067308409,0.71,125.9,125.84,11.04204681]
[1766067308610,11.75204681,125.9,125.85,11.04204681]
[1766067308917,11.75204681,125.9,125.81,0.7]
[1766067308918,11.04204681,125.89,125.81,0.7]
[1766067309246,8.65289724,125.9,125.81,0.7]
[1766067309247,0.71,125.9,125.84,11.04204681]
[1766067309412,0.71,125.9,125.81,0.7]
[1766067309608,11.04204681,125.89,125.81,0.7]
[1766067309819,0.71,125.89,125.83,11.04204681]
[1766067310015,0.71,125.89,125.81,0.7]
[1766067310228,11.75204681,125.89,125.83,11.04204681]
[1766067310425,0.71,125.89,125.83,11.04204681]
[1766067310736,8.65028902,125.94,125.85,11.13767296]
[1766067310924,11.75204681,125.93,125.85,11.13767296]
[1766067311125,11.04204681,125.93,125.87,11.04204681]
[1766067311325,0.71,125.92,125.87,11.04204681]
[1766067311520,7.94218092,125.91,125.85,10.43767296]
[1766067311838,0.71,125.91,125.86,11.04204681]
[1766067312046,0.71,125.9,125.85,11.04204681]
[1766067312350,7.94160089,125.92,125.81,10.43767296]
[1766067312351,7.94107062,125.93,125.89,11.04204681]
[1766067312520,8.62107062,125.93,125.88,11.04204681]
[1766067312717,0.68,125.92,125.82,11.04204681]
[1766067313042,0.68,125.9,125.85,11.04204681]
[1766067313355,11.72204681,125.88,125.83,11.04204681]
[1766067313544,7.94470485,125.87,125.78,10.43767296]
[1766067313848,7.94351924,125.89,125.8,10.43767296]
[1766067314018,8.62155019,125.92,125.88,11.04204681]
[1766067314216,19.663597,125.92,125.82,11.04204681]
[1766067314439,19.663597,125.92,125.87,11.04204681]
[1766067314440,0.68,125.91,125.87,11.04204681]
[1766067314921,9.38,125.91,125.82,11.04204681]
[1766067315121,9.38,125.91,125.89,11.04204681]
[1766067315324,7.94155019,125.92,125.88,11.04204681]
[1766067315325,8.7,125.92,125.88,11.04204681]
[1766067315736,0.68,125.89,125.85,11.04204681]
[1766067316038,8.7,125.92,125.87,11.04204681]
[1766067316209,8.7,125.92,125.82,11.04204681]
[1766067316210,9.38,125.92,125.85,10.43767296]
[1766067316538,0.68,125.91,125.82,11.04204681]
[1766067316744,0.68,125.9,125.82,10.43767296]
[1766067317039,9.38,125.92,125.88,11.04204681]
[1766067317238,9.38,125.92,125.82,21.47971977]
[1766067317239,11.04204681,125.91,125.82,10.43767296]
[1766067317420,11.72204681,125.89,125.84,11.04204681]
[1766067317616,7.94407372,125.88,125.84,11.04204681]
[1766067317832,8.62365456,125.89,125.84,11.04204681]
[1766067318516,8.62365456,125.89,125.86,11.04204681]
[1766067318517,0.68,125.89,125.86,11.04204681]
[1766067318719,0.68,125.87,125.74,7.95233059]
[1766067318930,0.68,125.87,125.82,11.04204681]
[1766067319131,0.68,125.87,125.75,16.76178377]
[1766067319310,0.68,125.88,125.82,11.04204681]
[1766067319515,7.94533608,125.86,125.74,39.94746815]
[1766067319748,0.68,125.85,125.8,11.04204681]
[1766067319913,0.68,125.85,125.81,11.04204681]
[1766067320113,0.68,125.85,125.82,11.04204681]
[1766067320530,0.68,125.85,125.81,11.04204681]
[1766067320929,0.68,125.85,125.77,10.43767296]
[1766067321126,0.68,125.85,125.81,11.04204681]
[1766067321345,0.68,125.85,125.76,10.43767296]
[1766067321346,16.64491019,125.87,125.83,11.04204681]
[1766067321549,0.68,125.86,125.78,10.43767296]
[1766067321750,0.68,125.86,125.82,11.04204681]
[1766067322046,0.68,125.86,125.79,10.43767296]
[1766067322214,0.68,125.86,125.83,11.04204681]
[1766067322623,8.62344268,125.89,125.84,11.04204681]
[1766067322823,9.38,125.89,125.85,11.04204681]
[1766067323117,0.68,125.88,125.83,11.04204681]
[1766067323429,0.68,125.88,125.8,10.43767296]
[1766067323626,0.68,125.87,125.82,11.04204681]
[1766067323940,8.7,125.89,125.79,10.43767296]
[1766067324145,11.72204681,125.89,125.83,11.04204681]
[1766067324324,11.72204681,125.89,125.75,0.99999999]
[1766067324325,0.68,125.87,125.8,10.43767296]
[1766067324519,0.68,125.86,125.82,11.04204681]
[1766067324718,0.68,125.86,125.8,10.43767296]
[1766067324938,0.68,125.86,125.83,11.04204681]
[1766067325139,9.38,125.88,125.84,11.04204681]
[1766067325838,0.68,125.88,125.81,10.43767296]
[1766067326040,0.68,125.88,125.84,11.04204681]
[1766067326353,8.62413325,125.88,125.84,11.04204681]
[1766067326520,0.68,125.87,125.8,10.43767296]
[1766067326715,0.68,125.87,125.82,11.04204681]
[1766067326916,0.68,125.87,125.76,25.44147051]
[1766067327118,0.68,125.86,125.79,10.43767296]
[1766067327335,0.68,125.85,125.81,11.04204681]
[1766067328057,0.68,125.85,125.79,10.43767296]
[1766067328220,8.62651727,125.85,125.79,10.43767296]
[1766067328545,8.62608903,125.85,125.81,11.04204681]
[1766067329040,0.68,125.88,125.83,11.04204681]
[1766067329343,9.38,125.87,125.8,10.43767296]
[1766067329737,17.32473473,125.87,125.83,11.04204681]
[1766067330241,17.32473473,125.87,125.85,11.04204681]
[1766067330242,8.7,125.87,125.85,11.04204681]
[1766067330447,9.38,125.89,125.85,11.04204681]
[1766067330640,0.68,125.89,125.85,11.04204681]
[1766067330947,8.7,125.9,125.87,11.04204681]
[1766067331248,17.32282901,125.9,125.86,11.04204681]
[1766067331443,8.62282901,125.9,125.86,11.04204681]
[1766067331745,0.68,125.9,125.86,11.04204681]
[1766067331946,0.68,125.9,125.87,11.04204681]
[1766067332154,8.7,125.91,125.85,10.43767296]
[1766067332453,8.7,125.91,125.87,11.04204681]
[1766067332623,0.68,125.92,125.88,11.04204681]
[1766067332829,8.7,125.93,125.9,11.04204681]
[1766067333147,8.81916705,125.96,125.92,11.04204681]
[1766067333519,8.81916705,125.96,125.91,11.04204681]
[1766067333747,8.81916705,125.96,125.92,11.04204681]
[1766067333962,0.68,125.95,125.92,11.04204681]
[1766067334170,0.2,125.96,125.92,11.04204681]
[1766067334450,0.2,125.96,125.94,11.04204681]
[1766067334653,0.2,125.96,125.89,10.43767296]
[1766067334654,0.2,125.96,125.95,11.04204681]
[1766067334948,0.2,125.98,125.91,21.47971977]
[1766067335160,8.7,126.01,125.97,11.04204681]
[1766067335338,17.31603783,126.01,125.96,11.04204681]
[1766067335524,17.31603783,126.01,125.97,11.04204681]
[1766067335830,0.2,126.02,125.99,11.04204681]
[1766067336030,8.13534262,126.02,125.98,11.04204681]
[1766067336368,8.13534262,126.02,125.94,10.43767296]
[1766067336647,0.88,126.02,125.94,18.37789266]
[1766067336843,0.88,126.02,125.99,11.04204681]
[1766067337044,8.8157972,126.02,125.99,11.04204681]
[1766067337348,0.88,126.02,125.99,11.04204681]
[1766067337758,0.2,126.02,125.94,19.11767296]
[1766067337943,0.68,126.01,125.8,58.74752745]
[1766067338138,8.80994492,125.98,125.89,11.04204681]
[1766067338346,11.04204681,125.92,125.84,8.68]
[1766067338534,0.68,125.92,125.87,11.04204681]
[1766067338854,0.68,125.92,125.88,11.04204681]
[1766067339225,0.68,125.92,125.84,8.68]
[1766067339427,0.68,125.94,125.89,11.04204681]
[1766067339647,11.72204681,125.96,125.86,10.43767296]
[1766067339837,0.68,125.95,125.9,11.04204681]
[1766067340040,11.04204681,125.93,125.88,11.04204681]
[1766067340347,0.68,125.93,125.88,11.04204681]
[1766067340741,0.68,125.93,125.89,11.04204681]
[1766067341139,11.72204681,125.93,125.85,8.68]
[1766067341455,11.72204681,125.93,125.82,15.57139102]
[1766067341456,0.68,125.9,125.82,15.57139102]
[1766067341632,0.68,125.9,125.82,6.7614461]
[1766067341828,8.62028902,125.94,125.85,10.43767296]
[1766067342042,0.68,125.94,125.9,6.7614461]
[1766067342427,0.68,125.94,125.92,6.7614461]
[1766067342645,0.68,125.94,125.9,6.7614461]
[1766067343048,0.68,125.94,125.91,6.7614461]
[1766067343429,0.7,125.96,125.9,10.43767296]
[1766067343660,0.7,125.96,125.92,6.7614461]
[1766067344251,0.7,125.95,125.89,10.43767296]
[1766067344429,0.7,125.95,125.91,6.7614461]
[1766067344833,0.7,125.96,125.86,8.68]
[1766067345132,7.4614461,125.95,125.9,6.7614461]
[1766067345444,0.7,125.95,125.91,6.7614461]
[1766067345755,0.7,125.94,125.9,6.7614461]
[1766067346140,0.7,125.94,125.86,16.62509237]
[1766067346338,0.7,125.94,125.9,6.7614461]
[1766067346566,7.4614461,125.97,125.92,6.7614461]
[1766067346755,0.7,125.97,125.93,6.7614461]
[1766067346943,0.7,125.96,125.91,6.7614461]
[1766067347152,0.7,125.96,125.87,18.38209485]
[1766067347352,8.63943185,125.96,125.91,6.7614461]
[1766067347660,8.63943185,125.96,125.92,6.7614461]
[1766067348562,0.7,125.96,125.92,6.7614461]
[1766067348939,0.7,125.96,125.93,6.7614461]